Cogmind - Beta 14 @@@ ROGUE MODE // 2025.01.15 @ 12:47:58 Player: muesli Result: Destroyed by XQ-4OH(R) with Subdweller Laser Performance ------------- Evolutions (0) 0 Regions Visited (2) 400 Robots Destroyed (4) 20 Value Destroyed (142) 142 Prototype IDs (0) 0 Alien Tech Used (0) 0 Bonus (0) 0 TOTAL SCORE: 562 Bonus ------- None Cogmind --------- Core Integrity 0/250 Matter 265/300 Energy 171/250 System Corruption 0% Temperature Cool (12) Movement Core (250) Ox4 Location -10/Subcaves Parts ------- > --- POWER (1) -------- Ion Engine > --- PROPULSION (2) --- (None) > --- UTILITY (2) ------ Small Storage Unit > --- WEAPON (2) ------- EM Pulse Gun EM Pulse Gun > --- INVENTORY (8) ---- Light Ion Engine EM Pulse Gun Assault Rifle Peak State ------------ > --- POWER ------------ Ion Engine > --- PROPULSION ------- Aluminum Leg Aluminum Leg > --- UTILITY ---------- Small Storage Unit > --- WEAPON ----------- EM Pulse Gun Light Assault Rifle > --- INVENTORY -------- Light Ion Engine Light Treads Light Treads Compact Wheel Compact Wheel Assault Rifle [Rating: 6] Favorites ----------- Power Ion Engine Engine Ion Engine Propulsion Aluminum Leg Leg Aluminum Leg Utility Small Storage Unit Storage Small Storage Unit Weapon EM Pulse Gun Energy Gun EM Pulse Gun Ballistic Gun Assault Rifle Build | -11 -10 -10 ------- Run | Yrd Mat Sub Slots Evolved . | . . . Power . | . . . Propulsion . | . . . Utility . | . . . Weapon . | . . . Parts Attached 9 | . 4 5 Power 2 | . 1 1 Engine 2 | . 1 1 Core . | . . . Reactor . | . . . Propulsion 2 | . 1 1 Treads . | . . . Leg 2 | . 1 1 Wheel . | . . . Hover . | . . . Flight . | . . . Utility . | . . . Device . | . . . Storage . | . . . Processor . | . . . Hackware . | . . . Protection . | . . . Artifact . | . . . Weapon 5 | . 2 3 Energy Gun 4 | . 1 3 Energy Cannon . | . . . Ballistic Gun 1 | . 1 . Ballistic Cannon . | . . . Launcher . | . . . Special Weapon . | . . . Impact Weapon . | . . . Slashing Weapon . | . . . Piercing Weapon . | . . . Special Melee Weapon . | . . . Unidentified Prototypes . | . . . Parts Lost 7 | . . 7 Power 1 | . . 1 Propulsion 3 | . . 3 Utility . | . . . Weapon 3 | . . 3 Highest Loss Streak 7 | . . 7 To Critical Strikes . | . . . Average Slot Usage (%) 84 | . 85 82 Engine 14 | . 14 14 Leg 27 | . 28 26 Storage 14 | . 14 14 Energy Gun 24 | . 23 27 Ballistic Gun 3 | . 4 . Peak Build Rating 6 | . 6 6 Average Rating 5 | . 6 5 On Entrance 6 | 6 6 6 Naked Turns . | . . . Heaviest Build 14 | 13 14 14 Greatest Support 20 | 20 20 20 Greatest Overweight (x) 1 | . . 1 Average Overweight (x) . | . . . Largest Inventory Capacity 8 | . 8 8 Average Capacity 8 | . 8 8 Most Carried 8 | . 8 8 Average Carried 7 | . 7 7 Final Capacity 8 | 8 8 8 Final Carried 8 | 6 8 3 Class Distribution -------------------- 100% | Mutant Dominant Class ---------------- Mutant | -10/Materials Mutant | -10/Subcaves Resources | -11 -10 -10 ----------- Run | Yrd Mat Sub Matter Collected 250 | 200 50 . Remotely . | . . . Salvage Created 178 | . 118 60 Parts 10 | . 6 4 Haulers Intercepted . | . . . Recyclers Shooed . | . . . Parts Field Recycled . | . . . Retrieved Matter . | . . . Parts Self-Destructed . | . . . Prevented . | . . . Kills | -11 -10 -10 ------- Run | Yrd Mat Sub Combat Hostiles Destroyed 4 | . 3 1 Guns 4 | . 3 1 Classes Destroyed 2 | . 1 1 Grunt 3 | . 3 . Subdweller 1 | . . 1 Best Kill Streak 2 | . 2 1 Combat Bots Only 2 | . 2 1 Max Kills in Single Turn 1 | . 1 1 Gunslinging . | . . . Exploded . | . . . Melee . | . . . Uniques/NPCs Destroyed . | . . . Combat | -11 -10 -10 -------- Run | Yrd Mat Sub Hostile Shots Fired 62 | . 17 45 Missed 16 | . 4 12 Damage Taken 899 | . 144 755 Core 259 | . 22 237 Absorbed by Shields . | . . . Core Remaining (%) 100 | 100 . . Volleys Fired 18 | . 10 8 Largest 2 | . 2 2 Hottest 80 | . 60 80 Shots Fired 36 | . 20 16 Gun 36 | . 20 16 Cannon . | . . . Launcher . | . . . Special . | . . . Kinetic 10 | . 10 . Thermal . | . . . Explosive . | . . . Electromagnetic 26 | . 10 16 Robot Hit Streak 10 | . 3 10 Robot Miss Streak 2 | . 2 1 Penetration Max . | . . . Secondary Targets . | . . . Shots Hit Robots 27 | . 12 15 Core Hits 8 | . 5 3 Critical Kills . | . . . Critical Parts Destroyed 1 | . 1 . Critical Strikes 2 | . 2 . Destroy 1 | . 1 . Corrupt 1 | . 1 . Melee Attacks . | . . . Impact . | . . . Slashing . | . . . Piercing . | . . . Sneak Attacks . | . . . Combat Hostiles . | . . . Follow-up Attacks . | . . . Damage Inflicted 317 | . 157 160 Guns 317 | . 157 160 Cannons . | . . . Explosions . | . . . Melee . | . . . Ramming . | . . . Kinetic 100 | . 100 . Thermal . | . . . Explosive . | . . . Electromagnetic 217 | . 57 160 Impact . | . . . Slashing . | . . . Piercing . | . . . Highest Corruption . | . . . Average Corruption . | . . . Corruption Purged . | . . . Corruption Blocked . | . . . Overload Shots . | . . . Overflow Damage . | . . . Projectiles . | . . . Explosions . | . . . Melee . | . . . Knockbacks . | . . . Impact . | . . . Kinetic . | . . . Secondary . | . . . Self-Inflicted Damage . | . . . Shots . | . . . Rammed . | . . . Targets Rammed . | . . . Kicked . | . . . Crushed . | . . . Highest Temperature 48 | . 48 . Average Temperature 23 | . 23 . Received Heat Transfer 276 | . 78 198 Siege Activations . | . . . Robots Corrupted . | . . . Combat Hostiles . | . . . Parts Fried 2 | . . 2 Impact Corruptions . | . . . Robots Melted . | . . . Combat Hostiles . | . . . Parts Melted . | . . . Heat Transferred . | . . . Parts Sabotaged . | . . . Parts Stolen . | . . . Parts Stripped . | . . . Power Chain Reactions . | . . . Alert | -11 -10 -10 ------- Run | Yrd Mat Sub Peak Influence 86 | . 86 . Initial . | . . . Average 32 | . 32 . Maximum Alert Level . | . . . Low Security (%) 100 | . 100 . Level 1 . | . . . Level 2 . | . . . Level 3 . | . . . Level 4 . | . . . Level 5 . | . . . High Security . | . . . Max Security . | . . . Squads Dispatched 2 | . 2 . Investigation . | . . . Extermination . | . . . Reinforcement 2 | . 2 . Assault . | . . . Garrison . | . . . Intercept . | . . . Searches Triggered . | . . . Construction Impeded . | . . . Haulers Reinforced . | . . . Active Scanning Responses . | . . . Cargo Convoy Interrupts . | . . . Stealth | -11 -10 -10 --------- Run | Yrd Mat Sub Distress Signals . | . . . Communications Jammed . | . . . Distress Signals . | . . . Times Spotted 9 | . 6 3 Peak Tracking Total 3 | . 2 3 Tactical Retreats . | . . . Traps | -11 -10 -10 ------- Run | Yrd Mat Sub Traps Triggered 2 | . . 2 Indirectly . | . . . Trap Hack Attempts . | . . . Triggered . | . . . Disarmed . | . . . Reprogrammed . | . . . Reused . | . . . Traps Extracted . | . . . Installed . | . . . Triggered . | . . . Machines | -11 -10 -10 ---------- Run | Yrd Mat Sub Machines Disabled . | . . . Max in Single Turn . | . . . Machines Repaired . | . . . Machines Dismantled . | . . . Machines Sabotaged . | . . . Overloaded Fab Kills . | . . . Hacking | -11 -10 -10 --------- Run | Yrd Mat Sub Machines Accessed . | . . . Terminals . | . . . Fabricators . | . . . Repair Stations . | . . . Recycling Units . | . . . Scanalyzers . | . . . Garrison Access . | . . . Total Hacks . | . . . Successful . | . . . Failed . | . . . Catastrophic . | . . . Database Lockouts . | . . . Manual . | . . . Terminals . | . . . Fabricators . | . . . Repair Stations . | . . . Recycling Units . | . . . Scanalyzers . | . . . Garrison Access . | . . . Terminal Hacks . | . . . Fabricator Hacks . | . . . Repair Station Hacks . | . . . Recycling Unit Hacks . | . . . Scanalyzer . | . . . Garrison Access Hacks . | . . . Unauthorized Hacks . | . . . Terminals . | . . . Fabricators . | . . . Repair Stations . | . . . Recycling Units . | . . . Scanalyzers . | . . . Garrison Access . | . . . Data Cores Recovered . | . . . Used . | . . . Hacking Detections . | . . . Full Trace Events . | . . . Feedback Events . | . . . Feedback Blocked . | . . . Robot Schematics Acquired . | . . . Robots Built . | . . . Authchips . | . . . Time . | . . . Total Robot Build Rating . | . . . Part Schematics Acquired . | . . . Parts Built . | . . . Authchips . | . . . Time . | . . . Total Part Build Rating . | . . . Parts Repaired . | . . . Time . | . . . Parts Recycled . | . . . Recycled Matter . | . . . Retrieved Matter . | . . . Retrieved Components . | . . . Parts Scanalyzed . | . . . Part Schematics Acquired . | . . . Parts Damaged . | . . . Bothacking | -11 -10 -10 ------------ Run | Yrd Mat Sub Used RIF Installer . | . . . Robots Hacked . | . . . Non-combat . | . . . Combat . | . . . Robot Hacks Applied . | . . . Relay Couplers Released . | . . . Fabnet Peak Effective % . | . . . Robots Rewired . | . . . Allies Hacked . | . . . Hacks Repelled . | . . . Allies | -11 -10 -10 -------- Run | Yrd Mat Sub Total Allies . | . . . Largest Group . | . . . Highest-Rated Group . | . . . Highest-Rated Ally . | . . . Total Orders . | . . . Ally Attacks . | . . . Total Damage . | . . . Kills . | . . . Allies Corrupted . | . . . Allies Melted . | . . . Intel | -11 -10 -10 ------- Run | Yrd Mat Sub Robot Analysis Total . | . . . Derelict Logs Recovered . | . . . Drone Launches . | . . . Drone Recoveries . | . . . Exploration | -11 -10 -10 ------------- Run | Yrd Mat Sub Turns Passed 1072 | . 733 339 Spaces Moved 458 | 1 214 243 Core . | . . . Treads . | . . . Legs 458 | 1 214 243 Wheels . | . . . Hover . | . . . Flight . | . . . Fastest Speed 120 | 120 120 120 Average Speed 121 | 120 120 122 Slowest Speed 190 | 120 120 190 Overloaded Moves . | . . . Propulsion Burnouts . | . . . Robots Hopped . | . . . Cave-ins Triggered . | . . . Exploration Rate (%) 16 | 2 35 13 Regions Visited 2 Branch Regions 1 Pre-discovered Areas 1 | . . 1 Known Exits Taken . | . . . Unknown Exits Taken 2 | 1 1 . Scrap Searched . | . . . Spaces Dug . | . . . Terrain Destroyed . | . . . Melee . | . . . Projectile . | . . . AOE . | . . . Terrain Rammed . | . . . Walls Destroyed . | . . . Machines Disabled . | . . . Actions | -11 -10 -10 --------- Run | Yrd Mat Sub Total 940 | . 670 270 Wait 447 | . 433 14 Move 456 | . 213 243 Hop . | . . . Pick Up 5 | . 5 . Fast Attach . | . . . Attach 5 | . . 5 Detach . | . . . Swap 4 | . 4 . Drop 5 | . 5 . Fire 18 | . 10 8 Melee . | . . . Ram . | . . . Kick . | . . . Crush . | . . . Escape Stasis . | . . . Rewire . | . . . Trap . | . . . Miscellaneous . | . . . Route ------- -11/Scrapyard -10/Materials (discovered 2 exits: [*Mat] / [*Sub]) -10/Subcaves History --------- Turn | Location | Event 1 | -11/Scrapyard | Discovered new exit (range 0) 1 | -11/Scrapyard | Entered Materials 246 | -10/Materials | Discovered new exit (range 10) 304 | -10/Materials | Build established: Mutant 706 | -10/Materials | Discovered new exit (range 10) 734 | -10/Materials | Entered Subcaves 755 | -10/Subcaves | Learned location of Zion (-7) 755 | -10/Subcaves | Met a Zionite searching for "candidates" 1030 | -10/Subcaves | Core integrity fell below 50% 1064 | -10/Subcaves | Core integrity fell below 20% 1073 | -10/Subcaves | Destroyed by XQ-4OH(R) with Subdweller Laser Last Messages --------------- trip to Zion?" World map updated: -7/Zion. Triggered Shrapnel Trap. An expanding cloud of shrapnel blasts out in all directions. 9M-RZA(u) builds Twisted Machinery. Triggered Piercing Trap. Spikes shoot up from the floor. Critical hit (Impale). PV-IS5(R): "LEAVESUB!" EM Pulse Gun destroyed. Aluminum Leg destroyed. Ion Engine destroyed. Aluminum Leg destroyed. EM Pulse Gun destroyed. Sub. Monowheel fried. Disposable Heat Sink fried. FQ-20Q(R) destroyed. EM Pulse Gun destroyed. Aluminum Leg destroyed. Subatomizers dissect the Corrupted Sub. Optics. Map ----- +----------------------------------------------------+ | ?????? ?????????????????????????????????????????? | | ????? ?????????????????????????????????????????? | | ?????# #????????????????????????????????????????? | | ??##? ????????????????????????????????????????? | | ??# ## ????????????????????????????????????????? | | ??# ?????????????????????????????? ?????????? | | ??# ????????????????????????????? ?????????? | | ??# #????????????????????????????" ?????????? | | ??# #???????????????????????????? ??????????? | | ??# ???????????????????????????? ??????????? | | ??# ##??????????????????????????? ??????????? | | ???# #??????????????????????????? #??????????? | | ????# ####??????????????????????? ??????????? | | ???## ####???????????????????? ##?????????? | | ??## #???????????????????? #???? ""??? | | ??# #???????????????????? #??? """?? | | ??# #### ##???????????????????? #### " "?? | | ??# #?# ###???????????????????## # " "?? | | ??# #?# #????????????????????## """?? | | ??## #?# ##?????###?????####### ###?????? | | ???# ###?## ####?## ##???## ## ##???????? | | ???##????## #?# ##### ""#????????? | | ?????????# ## ### ###"#????????? | | ????######### # # R! ## #??"#????????? | | ??### # # R%#### #???#????????? | | ??# [@#### "###??????????? | | ??# ## ## " "#### "?????? | | ??# # ######## """"" " ""????? | | ??# ##### #??????### "" "" ?????? | | ??# ##???# ##????????# #" #???? | | ??# #????# #?????????# ### ##???? | | ?# ##??? #?????????# ##? ##????? | | ?# #??# #???####### #?? #?????? | | ?## ^ ?? #???# ## ### #??###?????? | | ??## ?? ???# ##### #??????????? | | ???#^ ?? #??## # #### ##?## ###????##??? | | ???## ######## ##??## ###?## ##??# ##?? | | ????### #### # ##????## #### #?# ##? | | ??????### ## #??????## #? #? | | ?????????## ## # #??????# ### #?? | | ?????##????# # #####??????# ## #??? | | ????## ###?# # #??????????# #??? | | ????# ### ##?????????## #??? | | ????# ####???????## ## #??? | | ????## ^ #????????# ##?????? | | ?????## ^#????????# ####???? | | ??????## ## ##????????## ###?? | | ???????# ###### ####??????????# ## ##? | | ???????#####????# ##????????????# ### #? | | ????????????????###?????????????## ####### ## #? | +----------------------------------------------------+ Best States ------------- Heat Dissipation 25 Energy Generation 10 Energy Capacity 250 Matter Stores 300 Matter Capacity 300 Sight Range 16 Terrain Scan Density 10 Evasion (%) 55 Item Schematics ----------------- None Robot Schematics ------------------ None Fabricated ------------ Nothing Alien Tech Used ----------------- None Achievements -------------- None Challenges ------------ None Game ------ Seed MicroExperimentalThrower Manual? 0 Play Time 00:09:30 Cumulative 9.3 hours Start 2025.01.15 @ 12:39:29 End 2025.01.15 @ 12:47:58 Sessions 1 Manual Loads 0 Difficulty Rogue Special Mode None Game No. 18 Rogue 15 Adventurer 3 Explorer 0 Win Type - Total 0 Types 0/0/0/0/0/0/0/0/0 Lore% 7 Gallery% 13 Achievement% 14 Wizard Run 0 Options --------- Layout 0 ASCII 1 Keyboard 1 Movement Vi Keybinds 0 Fullscreen 2 Font 24/Smallcaps Map View 76x50 Zoom Use 0% Tactical HUD 0 Map Filters NONE Filters NONE Steam 1 RUN: 7f0a588b-fc6d-4126-a0c2-097b1e65d1ff